[Event "IX Iberoamericano Championship 2023"]
[Site "Panama City"]
[Date "2023.12.02"]
[Round "8.11"]
[White "Delgado Rosas, Alex Antonio"]
[Black "Zambrana, Osvaldo"]
[Result "0-1"]
[ECO "B13"]
[WhiteElo "2105"]
[BlackElo "2400"]
[Annotator "TA"]
[PlyCount "100"]
[EventDate "2023.11.27"]
[EventType "swiss"]
[EventCountry "PAN"]
[SourceTitle "playchess.com"]
[Source "ChessBase"]
[SourceQuality "1"]
[TimeControl "5400+30"]

{[%evp 20,100,13,6,21,0,6,0,0,0,0,0,6,0,7,0,2,0,11,-97,11,7,9,20,26,23,83,0,0,-97,12,11,49,39,66,37,37,37,37,25,25,25,25,25,25,25,25,17,43,0,0,0,15,0,0,0,0,0,0,0,19,0,0,0,0,0,0,0,-1,-8,-1,-1000,-987,-29954,-29953,-29953,-29955,-29956,-29952,-29943,-29941,-11928,-11690]} 1. d4 {[%emt 0:00:05]} d5 {[%emt 0:14:39]} 2. Nf3 {[%emt 0:00:11]} Nf6 {[%emt 0:00:14]} 3. Bf4 {[%emt 0:00:08]} c5 {[%emt 0:00:06]} 4. e3 {[%emt 0:00:05]} Nc6 {[%emt 0:00:09]} 5. Nbd2 {[%emt 0:00:07]} cxd4 {[%emt 0:00:31]} 6. exd4 {[%emt 0:00:03]} Bg4 {[%emt 0:00:10]} 7. c3 {[%emt 0:02:04]} e6 {[%emt 0:00:03]} 8. Qb3 {[%emt 0:02:01]} Bd6 {[%emt 0:02:23]} 9. Bxd6 {[%emt 0:07:18]} Qxd6 {[%emt 0:00:05]} 10. Bd3 {[%emt 0:00:19]} O-O {[%emt 0:00:32]} 11. O-O {[%emt 0:00:12]} Rab8 {[%emt 0:01:42][%cal Ob7b5] B13: Caro-Kann: Exchange Variation and Panov-Botvinnik Attack.} 12. a4 {[%emt 0:01:14]} a6 {[%emt 0:21:15]} 13. a5 {[%emt 0:08:48]} Qc7 {[%emt 0:02:07] [#] The position is equal.} 14. Qa4 $146 {[%emt 0:00:25]} ({Predecessor:} 14. Qa3 Nh5 15. h3 Nf4 16. Bc2 Bh5 17. g3 Ne2+ 18. Kg2 Ncxd4 19. Bxh7+ Kxh7 20. cxd4 {1-0 Zemlyanskii,I (2300)-Goltseva,E (2283) Titled Tuesday intern op 16th May Early blitz 2023 (11)}) 14... Nd7 {[%emt 0:02:44]} 15. h3 {[%emt 0:01:28]} Bh5 {[%emt 0:00:09]} 16. Rfe1 {[%emt 0:05:31]} Rfe8 {[%emt 0:00:03]} 17. Re3 {[%emt 0:14:40]} Rbd8 {[%emt 0:02:37]} 18. Qc2 {[%emt 0:07:35]} Bg6 {[%emt 0:00:37]} 19. b4 {[%emt 0:00:24]} (19. Bxg6 $11 hxg6 20. Qa4) 19... e5 {[%emt 0:21:04]} ({Black should play} 19... Nxb4 $1 $17 20. cxb4 Qxc2 21. Bxc2 Bxc2) 20. dxe5 $11 {[%emt 0:07:45]} Ndxe5 {[%emt 0:00:41]} 21. Rae1 {[%emt 0:05:07]} Re6 {[%emt 0:06:13]} 22. Bxg6 {[%emt 0:04:20]} hxg6 {[%emt 0:00:05]} (22... Nxg6 $11 {remains equal.} 23. Qd3 (23. Rxe6 fxe6 24. Rxe6 Nxb4 $11) 23... Qd7) 23. Nxe5 {[%emt 0:04:59]} (23. Ng5 $16 Rf6 24. Ndf3 Nxf3+ 25. Nxf3) 23... Rxe5 {[%emt 0:00:04]} 24. Nf3 {[%emt 0:00:11]} (24. Rxe5 $11 {keeps the balance.} Nxe5 25. Qb3) 24... Rxe3 {[%emt 0:00:08]} (24... Nxb4 $1 $17 25. Qa4 Rxe3 26. Rxe3 Nc6) 25. Rxe3 {[%emt 0:00:06][%cal Be1e3,Be3d3,Bd3d2,Bd2e2][%mdl 32]} Qf4 {[%emt 0:08:31]} 26. Qd2 {[%emt 0:13:56][%cal Oe3e8] And now Re8+! would win.} Kh7 {[%emt 0:05:19]} 27. Rd3 {[%emt 0:00:57]} Qxd2 {[%emt 0:00:21]} 28. Rxd2 $14 {[%emt 0:00:01][%mdl 4096] Endgame KRN-KRN} Kg8 {[%emt 0:02:52][%cal Bh7g8,Bg8f8,Bf8e7,Be7d6][%mdl 32]} 29. Kf1 {[%emt 0:04:05]} Kf8 {[%emt 0:00:02]} 30. Ke2 {[%emt 0:00:20]} Ke7 {[%emt 0:00:17]} 31. Kd3 {[%emt 0:00:33]} Kd6 {[%emt 0:00:23]} 32. Re2 {[%emt 0:00:42]} f6 {[%emt 0:00:56]} 33. Nd4 {[%emt 0:01:32]} Rc8 {[%emt 0:04:41]} 34. Nxc6 {[%emt 0:00:56]} bxc6 {[%emt 0:01:35] KR-KR} 35. Kd4 {[%emt 0:00:09]} Rh8 {[%emt 0:00:54]} 36. Kd3 {[%emt 0:02:01]} Rc8 {[%emt 0:00:50]} 37. Kd4 {[%emt 0:05:33]} g5 {[%emt 0:00:31]} 38. Re3 {[%emt 0:02:11]} Rb8 {[%emt 0:00:58]} 39. Re2 {[%emt 0:00:14]} Rh8 {[%emt 0:01:37]} 40. Re3 {[%emt 0:02:14]} Rh4+ {[%emt 0:00:40]} 41. g4 {[%emt 0:00:00]} f5 {[%emt 0:00:01]} 42. Rg3 {[%emt 0:00:00]} f4 {[%emt 0:00:13]} 43. Rd3 {[%emt 0:00:00]} Rh8 {[%emt 0:00:06]} 44. c4 {[%emt 0:00:46]} Rb8 {[%emt 0:00:01]} 45. Rb3 {[%emt 0:00:29][%mdl 8192] [#] White does not recover from this.} (45. Kc3 $11) 45... Rxb4 $3 $19 {[%emt 0:00:37][%mdl 576] Remove Defender, Decoy} 46. Rxb4 {[%emt 0:00:50]} (46. Ra3 Rxc4+) 46... c5+ {[%emt 0:00:01]} 47. Kc3 {[%emt 0:00:01]} cxb4+ {[%emt 0:01:12]} 48. Kxb4 {[%emt 0:00:04]} Kc6 {[%emt 0:00:52]} 49. Kc3 {[%emt 0:01:47]} dxc4 {[%emt 0:00:42]} 50. Kxc4 {[%emt 0:00:04] [#]} f3 $1 {[%emt 0:00:07] Weighted Error Value: White=0.45/Black=0.13 (very precise)} 0-1

[Event "IX Iberoamericano Championship 2023"]
[Site "Panama City"]
[Date "2023.12.02"]
[Round "8.12"]
[White "Matamoros Franco, Carlos S."]
[Black "Solares Orozco, Kebert"]
[Result "1/2-1/2"]
[ECO "D73"]
[WhiteElo "2455"]
[BlackElo "2312"]
[Annotator "TA"]
[PlyCount "52"]
[EventDate "2023.11.27"]
[EventType "swiss"]
[EventCountry "PAN"]
[SourceTitle "playchess.com"]
[Source "ChessBase"]
[SourceQuality "1"]
[TimeControl "5400+30"]

{[%evp 14,52,36,38,41,36,37,39,43,26,27,25,56,58,102,30,53,52,45,26,19,17,21,0,0,0,0,0,0,0,0,2,2,2,0,0,3,0,3,6,5506]} 1. Nf3 {[%emt 0:00:08]} d5 {[%emt 0:03:28]} 2. g3 {[%emt 0:00:13]} c6 {[%emt 0:00:07]} 3. Bg2 {[%emt 0:00:10]} g6 {[%emt 0:00:44]} 4. c4 {[%emt 0:02:15]} Bg7 {[%emt 0:00:10]} 5. d4 {[%emt 0:24:47]} Nf6 {[%emt 0:00:09]} 6. Qb3 {[%emt 0:03:33]} O-O {[%emt 0:00:44]} 7. O-O {[%emt 0:00:04]} b6 {[%emt 0:03:45]} 8. Nc3 {[%emt 0:04:42]} e6 {[%emt 0:13:47] D73: Fianchetto Grünfeld: 5 Nf3 .} 9. Rd1 {[%emt 0:12:18]} Nbd7 {[%emt 0:12:52]} 10. cxd5 {[%emt 0:03:06]} exd5 {[%emt 0:02:47] White is slightly better.} 11. Bf4 {[%emt 0:00:10]} Bb7 {[%emt 0:01:05]} 12. a4 {[%emt 0:03:11] [#]} Re8 $146 {[%emt 0:02:51]} ({Predecessor:} 12... c5 13. dxc5 Nxc5 14. Qa2 Qe7 15. Be5 Rfe8 16. e3 Rad8 17. a5 bxa5 18. Bd4 Nfe4 19. Bxg7 Kxg7 20. Nxe4 dxe4 {0-1 Benko,P-Evans,L USA-ch New York 1963 (6)}) 13. a5 $1 {[%emt 0:00:22]} Ba6 {[%emt 0:11:15]} 14. axb6 {[%emt 0:01:12]} (14. Ne5 $16 Qc8 15. axb6) 14... axb6 {[%emt 0:03:46]} 15. Ne5 {[%emt 0:01:52]} Nxe5 {[%emt 0:05:30]} 16. Bxe5 {[%emt 0:00:59]} Nd7 {[%emt 0:00:45]} 17. Bxg7 {[%emt 0:00:17] The position is equal.} Kxg7 {[%emt 0:00:01]} 18. e4 {[%emt 0:03:13]} Bc4 {[%emt 0:14:10]} 19. Qc2 {[%emt 0:06:02] Hoping for b3.} (19. Rxa8 {simplifies} Bxb3 20. Rxd8 Rxd8 21. Ra1) 19... Rxa1 {[%emt 0:00:06]} 20. Rxa1 {[%emt 0:00:04] [#] Black must now prevent b3.} dxe4 {[%emt 0:00:06]} 21. Bxe4 {[%emt 0:04:06]} c5 {[%emt 0:01:20]} 22. Rd1 {[%emt 0:16:16] dxc5 would be deadly.} Qf6 {[%emt 0:01:41]} 23. dxc5 {[%emt 0:08:58]} Nxc5 {[%emt 0:00:14] [#] aiming for ...Bb3.} 24. Bd5 {[%emt 0:00:06]} Bxd5 {[%emt 0:17:14]} 25. Nxd5 {[%emt 0:00:06]} Qf3 {[%emt 0:00:56]} 26. Qc3+ {[%emt 0:01:31]} Kg8 $2 {[%emt 0:03:57][%mdl 40960] Weighted Error Value: White=0.09 (flawless) /Black=0.06 (flawless) . An unexpected result.} (26... Qxc3 $11 27. Nxc3 Re6) 1/2-1/2

[Event "IX Iberoamericano Championship 2023"]
[Site "Panama City"]
[Date "2023.12.02"]
[Round "8.13"]
[White "Sanchez Alvarez, Roberto Carlos"]
[Black "Esmeraldas Huachi, Anderson"]
[Result "1/2-1/2"]
[ECO "B98"]
[WhiteElo "2437"]
[BlackElo "2120"]
[Annotator "TA"]
[PlyCount "54"]
[EventDate "2023.11.27"]
[EventType "swiss"]
[EventCountry "PAN"]
[SourceTitle "playchess.com"]
[Source "ChessBase"]
[SourceQuality "1"]
[TimeControl "5400+30"]

{[%evp 17,54,39,41,25,73,60,49,60,110,104,111,110,104,104,90,68,78,37,36,31,36,0,0,0,33,35,62,39,35,0,0,0,0,0,0,0,0,0,0]} 1. e4 {[%emt 0:06:53]} c5 {[%emt 0:00:07]} 2. Nf3 {[%emt 0:00:06]} d6 {[%emt 0:00:02]} 3. d4 {[%emt 0:00:11]} cxd4 {[%emt 0:00:02]} 4. Nxd4 {[%emt 0:00:08]} Nf6 {[%emt 0:00:04]} 5. Nc3 {[%emt 0:00:10]} a6 {[%emt 0:00:01]} 6. Bg5 {[%emt 0:00:09]} e6 {[%emt 0:00:08]} 7. f4 {[%emt 0:00:07]} Be7 {[%emt 0:02:54]} 8. Qf3 {[%emt 0:00:20]} O-O {[%emt 0:00:14]} 9. O-O-O {[%emt 0:00:16]} Qc7 {[%emt 0:06:02]} 10. Qg3 {[%emt 0:00:17] B98: Sicilian Najdorf: 6 Bg5 e6 7 f4 Be7, sidelines.} b5 {[%emt 0:11:15]} (10... Nbd7 $11) 11. e5 $16 {[%emt 0:05:35]} dxe5 {[%emt 0:04:22]} 12. fxe5 {[%emt 0:00:04] [#] White is slightly better.} b4 $146 {[%emt 0:19:16]} ({Black should play} 12... Ne8 $1 $14) ({Predecessor:} 12... Ne8 13. Ne4 Bxg5+ 14. Nxg5 h6 15. h4 Nd7 16. Re1 Nxe5 17. Rxe5 f6 18. Re3 Qxg3 19. Rxg3 hxg5 20. hxg5 {1-0 Parizek,V (2277)-Babicka,M (2022) CZE-chT2B 1819 2018 (7.2)}) 13. exf6 {[%emt 0:06:47]} Qxg3 {[%emt 0:02:52]} 14. hxg3 {[%emt 0:00:02]} gxf6 {[%emt 0:00:02] [#]} 15. Nd5 $1 {[%emt 0:00:01][%mdl 512]} exd5 {[%emt 0:00:53]} 16. Bf4 {[%emt 0:00:53] Black must now prevent Bd3.} Bg4 {[%emt 0:15:21]} 17. Bd3 {[%emt 0:16:32] White is much more active.} Bxd1 {[%emt 0:02:45]} 18. Bxh7+ {[%emt 0:14:03]} Kh8 {[%emt 0:00:23][%cal Of8d8]} 19. Be4+ {[%emt 0:27:02]} Kg8 {[%emt 0:00:09]} 20. Bh7+ $40 {[%emt 0:02:55][%mdl 128] White attacks.} Kh8 {[%emt 0:00:06][%cal Oe7c5]} 21. Kxd1 {[%emt 0:09:40]} Rd8 {[%emt 0:10:26]} 22. Bd3+ {[%emt 0:02:11][%mdl 1024] White has compensation.} Kg8 {[%emt 0:00:13]} 23. Nf5 {[%emt 0:00:06][%cal Of4h6] [#] White wants to mate with Bh6!} Bf8 {[%emt 0:00:27] The position is equal.} 24. Rh4 {[%emt 0:03:10]} Nc6 {[%emt 0:01:49]} 25. Rg4+ {[%emt 0:00:19]} Kh8 {[%emt 0:00:01]} 26. Rh4+ {[%emt 0:01:49]} Kg8 {[%emt 0:00:02]} 27. Rg4+ {[%emt 0:00:06]} Kh8 {[%emt 0:00:01] Weighted Error Value: White=0.12 (very precise) /Black=0.10 (very precise)} 1/2-1/2

[Event "IX Iberoamericano Championship 2023"]
[Site "Panama City"]
[Date "2023.12.02"]
[Round "8.14"]
[White "Battikh, Jose Miguel"]
[Black "Rodriguez Vila, Andres"]
[Result "0-1"]
[ECO "B27"]
[WhiteElo "2098"]
[BlackElo "2405"]
[Annotator "TA"]
[PlyCount "64"]
[EventDate "2023.11.27"]
[EventType "swiss"]
[EventCountry "PAN"]
[SourceTitle "playchess.com"]
[Source "ChessBase"]
[SourceQuality "1"]
[TimeControl "5400+30"]

{[%evp 13,64,35,28,0,0,0,0,0,0,0,-11,-37,-37,-31,-31,-18,-26,-25,-14,-86,-79,-68,-79,-123,-120,-107,-114,-107,-107,-107,-107,-107,-117,-118,-119,-118,-106,-110,-109,-124,-106,-100,-112,-103,-110,-215,-208,-322,-318,-5197,-4347,-2020,-2018]} 1. e4 {[%emt 0:00:26]} c5 {[%emt 0:00:20]} 2. Nf3 {[%emt 0:00:51]} a6 {[%emt 0:00:06]} 3. c3 {[%emt 0:02:10]} g6 {[%emt 0:00:11]} 4. d4 {[%emt 0:01:01]} cxd4 {[%emt 0:00:05]} 5. cxd4 {[%emt 0:00:17]} d5 {[%emt 0:00:03]} 6. exd5 {[%emt 0:08:48]} Nf6 {[%emt 0:00:12]} 7. Nc3 {[%emt 0:00:08]} Bg7 {[%emt 0:00:04]} 8. a4 {[%emt 0:05:48] B27: Sicilian: 2 Nf3, unusual Black 2nd moves.} Nxd5 {[%emt 0:01:50]} 9. Bc4 {[%emt 0:00:45]} Nxc3 {[%emt 0:00:07]} 10. bxc3 {[%emt 0:00:02] The position is equal.} Qc7 {[%emt 0:01:06]} 11. Qb3 {[%emt 0:10:36]} O-O {[%emt 0:00:16][%cal Bh8f8,Bf8d8,Bd8d5,Bd5c5][%mdl 32] [#]} 12. a5 $146 {[%emt 0:01:32]} ({Predecessor:} 12. Ng5 e6 13. Ba3 Re8 14. O-O Nc6 15. Bd3 Na5 16. Qb4 Bd7 17. Qd6 Qxd6 18. Bxd6 {0-1 Blauert,J (2275)-Backwinkel,P (2325) FRG-ch 20th Bad Neuenahr 1989}) 12... Nc6 {[%emt 0:01:48]} 13. Qb6 {[%emt 0:01:41]} Qxb6 {[%emt 0:00:26]} 14. axb6 {[%emt 0:00:07]} Bg4 {[%emt 0:00:53]} 15. Bd5 {[%emt 0:09:41]} Rac8 {[%emt 0:00:50]} 16. Bf4 {[%emt 0:13:25]} (16. h3 $11 {keeps the balance.} Bf5 17. O-O) 16... Rfd8 $36 {[%emt 0:14:56][%mdl 2048] Black is in control. Black continues to play with concentration.} 17. Be4 {[%emt 0:10:51]} f5 {[%emt 0:00:11]} 18. Bxc6 {[%emt 0:00:10]} Rxc6 {[%emt 0:00:04]} 19. Bc7 {[%emt 0:00:05]} Rd5 {[%emt 0:00:35] ...Bxf3 is the strong threat.} 20. Kd2 {[%emt 0:11:41] [#]} Bxf3 {[%emt 0:01:04]} 21. gxf3 {[%emt 0:00:05][%cal Oa1a6]} e5 {[%emt 0:04:12]} 22. Kd3 {[%emt 0:00:15][%cal Oa1a6]} exd4 {[%emt 0:01:30]} 23. c4 {[%emt 0:00:04]} Rdc5 {[%emt 0:01:28]} 24. Ra4 {[%emt 0:01:21]} Kf7 {[%emt 0:07:28]} 25. Re1 {[%emt 0:00:05]} g5 {[%emt 0:00:50]} 26. Bd8 {[%emt 0:02:18] Re7+ would be deadly.} Re5 {[%emt 0:06:29] Inhibits Re7+.} 27. Rxe5 {[%emt 0:01:09]} Bxe5 {[%emt 0:00:06] KRB-KRB} 28. Ra5 {[%emt 0:00:20] [#]} Ke6 {[%emt 0:00:36]} ({Of course not} 28... Bxh2 $6 29. Rxf5+ Ke8 30. Bxg5 $11) 29. h3 {[%emt 0:02:41]} (29. Ra1 $17 {might work better.}) 29... h6 $19 {[%emt 0:02:20]} 30. f4 {[%emt 0:03:34]} (30. Ra2 $142) 30... Bxf4 {[%emt 0:00:44]} 31. Kxd4 $2 {[%emt 0:00:50]} (31. f3) 31... Rd6+ {[%emt 0:00:13]} 32. Rd5 {[%emt 0:00:12]} Be5+ {[%emt 0:00:40][%mdl 64] Deflection.   Weighted Error Value: White=0.49/Black=0.02 (flawless)} 0-1

[Event "IX Iberoamericano Championship 2023"]
[Site "Panama City"]
[Date "2023.12.02"]
[Round "8.15"]
[White "Mendez Machado, Andre"]
[Black "Martins, Bruno Andre Leite"]
[Result "0-1"]
[ECO "B12"]
[WhiteElo "2096"]
[BlackElo "2323"]
[Annotator "RC"]
[PlyCount "100"]
[EventDate "2023.11.27"]
[EventType "swiss"]
[EventCountry "PAN"]
[SourceTitle "playchess.com"]
[Source "ChessBase"]
[SourceQuality "1"]
[TimeControl "5400+30"]

1. e4 {[%emt 0:04:13]} c6 {[%emt 0:00:20]} 2. d4 {[%emt 0:00:51]} d5 {[%emt 0:00:08]} 3. f3 {[%emt 0:00:19]} dxe4 {[%emt 0:00:52]} 4. fxe4 {[%emt 0:00:06]} e5 {[%emt 0:00:09]} 5. Nf3 {[%emt 0:00:07]} Bg4 {[%emt 0:00:23]} 6. c3 {[%emt 0:00:10]} Nd7 {[%emt 0:00:52]} 7. Bd3 {[%emt 0:02:38]} Ngf6 {[%emt 0:08:08]} 8. O-O {[%emt 0:01:57]} Bd6 {[%emt 0:00:07]} 9. Nbd2 {[%emt 0:00:11]} b5 {[%emt 0:00:21]} 10. a4 {[%emt 0:12:24]} a6 {[%emt 0:00:10]} 11. Qe1 {[%emt 0:04:28]} O-O {[%emt 0:03:13]} 12. axb5 {[%emt 0:05:39]} axb5 {[%emt 0:00:25]} 13. Rxa8 {[%emt 0:00:15]} Qxa8 {[%emt 0:00:05]} 14. Qh4 {[%emt 0:07:00]} Re8 {[%emt 0:14:56]} 15. Ng5 {[%emt 0:23:28]} Qa7 {[%emt 0:25:12]} 16. Kh1 {[%emt 0:05:26]} Nf8 {[%emt 0:03:10]} 17. h3 {[%emt 0:13:34]} Bh5 {[%emt 0:07:36]} 18. Ngf3 {[%emt 0:04:18]} Ng6 {[%emt 0:03:33]} 19. Qf2 {[%emt 0:02:10]} Bxf3 {[%emt 0:10:11]} 20. Nxf3 {[%emt 0:00:42]} Qc7 {[%emt 0:01:49]} 21. Qc2 {[%emt 0:03:05]} Nh5 {[%emt 0:03:55]} 22. Re1 {[%emt 0:00:56]} h6 {[%emt 0:00:35]} 23. d5 {[%emt 0:02:24]} cxd5 {[%emt 0:05:41]} 24. Bxb5 {[%emt 0:01:17]} Rf8 {[%emt 0:00:02]} 25. Bd3 {[%emt 0:03:17]} dxe4 {[%emt 0:01:27]} 26. Bxe4 {[%emt 0:00:25]} f5 {[%emt 0:00:12]} 27. Bd5+ {[%emt 0:00:40]} Kh8 {[%emt 0:02:29]} 28. Be3 {[%emt 0:01:29]} Qe7 {[%emt 0:01:08]} 29. Bf2 {[%emt 0:00:58]} e4 {[%emt 0:01:07]} 30. g4 {[%emt 0:00:27]} Ng3+ {[%emt 0:04:41]} 31. Kg1 {[%emt 0:00:18]} Nf4 {[%emt 0:02:08]} 32. Bxg3 {[%emt 0:00:46]} Nxd5 {[%emt 0:00:02]} 33. Nh4 {[%emt 0:00:27]} Qa7+ {[%emt 0:00:52]} 34. Bf2 {[%emt 0:00:27]} e3 {[%emt 0:00:17]} 35. Ng6+ {[%emt 0:00:28]} Kg8 {[%emt 0:00:08]} 36. Bh4 {[%emt 0:00:29]} Rf7 {[%emt 0:00:56]} 37. Qd3 {[%emt 0:00:28]} Qc5 {[%emt 0:00:57]} 38. gxf5 {[%emt 0:00:41]} Nf4 {[%emt 0:00:34]} 39. Nxf4 {[%emt 0:00:28]} Bxf4 {[%emt 0:00:01]} 40. Qe4 {[%emt 0:00:24]} Rxf5 {[%emt 0:00:31]} 41. Kh1 {[%emt 0:00:23]} Qf8 {[%emt 0:00:56]} 42. Rg1 {[%emt 0:00:31]} g5 {[%emt 0:00:35]} 43. Be1 {[%emt 0:00:37]} Qf7 {[%emt 0:00:29]} 44. h4 {[%emt 0:00:14]} Re5 {[%emt 0:00:14]} 45. Qa8+ {[%emt 0:00:40]} Kh7 {[%emt 0:00:14]} 46. Qf3 {[%emt 0:00:25]} e2 {[%emt 0:00:57]} 47. Rg2 {[%emt 0:00:47]} Re3 {[%emt 0:00:12]} 48. Qg4 {[%emt 0:00:24]} h5 {[%emt 0:00:14]} 49. Qc8 {[%emt 0:00:25]} g4 {[%emt 0:00:21]} 50. Kg1 {[%emt 0:00:28]} Bh2+ {[%emt 0:00:24]} 0-1

[Event "IX Iberoamericano Championship 2023"]
[Site "Panama City"]
[Date "2023.12.02"]
[Round "8.16"]
[White "Noboa Silva, Kevin"]
[Black "Mejias Nunez, Rafael E."]
[Result "1-0"]
[ECO "E11"]
[WhiteElo "2318"]
[BlackElo "2029"]
[Annotator "RC"]
[PlyCount "57"]
[EventDate "2023.11.27"]
[EventType "swiss"]
[EventCountry "PAN"]
[SourceTitle "playchess.com"]
[Source "ChessBase"]
[SourceQuality "1"]
[TimeControl "5400+30"]

1. d4 {[%emt 0:01:18]} Nf6 {[%emt 0:01:03]} 2. c4 {[%emt 0:00:15]} e6 {[%emt 0:00:37]} 3. Nf3 {[%emt 0:00:24]} Bb4+ {[%emt 0:02:19]} 4. Bd2 {[%emt 0:00:21]} Qe7 {[%emt 0:00:13]} 5. g3 {[%emt 0:00:10]} Nc6 {[%emt 0:01:04]} 6. Nc3 {[%emt 0:00:36]} O-O {[%emt 0:01:10]} 7. Bg2 {[%emt 0:00:22]} Bxc3 {[%emt 0:00:27]} 8. Bxc3 {[%emt 0:00:12]} Ne4 {[%emt 0:00:10]} 9. Rc1 {[%emt 0:00:16]} d6 {[%emt 0:03:52]} 10. d5 {[%emt 0:00:53]} Nxc3 {[%emt 0:00:48]} 11. Rxc3 {[%emt 0:00:09]} Nb8 {[%emt 0:05:41]} 12. dxe6 {[%emt 0:02:11]} fxe6 {[%emt 0:00:21]} 13. O-O {[%emt 0:01:40]} Nc6 {[%emt 0:00:53]} 14. c5 {[%emt 0:01:33]} Rd8 {[%emt 0:01:28]} 15. cxd6 {[%emt 0:04:38]} cxd6 {[%emt 0:01:35]} 16. Nd4 {[%emt 0:01:41]} Nxd4 {[%emt 0:02:59]} 17. Qxd4 {[%emt 0:00:29]} e5 {[%emt 0:02:12]} 18. Bd5+ {[%emt 0:06:59]} Be6 {[%emt 0:06:54]} 19. Qc4 {[%emt 0:11:47]} Bxd5 {[%emt 0:23:28]} 20. Qxd5+ {[%emt 0:00:31]} Kh8 {[%emt 0:00:07]} 21. Rfc1 {[%emt 0:01:39]} Rd7 {[%emt 0:11:36]} 22. Rc8+ {[%emt 0:01:35]} Rxc8 {[%emt 0:01:36]} 23. Rxc8+ {[%emt 0:00:06]} Rd8 {[%emt 0:00:04]} 24. Qxb7 {[%emt 0:01:14]} Qf8 {[%emt 0:01:43]} 25. Rxd8 {[%emt 0:00:18]} Qxd8 {[%emt 0:00:06]} 26. Qxa7 {[%emt 0:00:07]} h5 {[%emt 0:00:14]} 27. h4 {[%emt 0:01:00]} Qf6 {[%emt 0:00:32]} 28. Qa8+ {[%emt 0:00:17]} Kh7 {[%emt 0:00:18]} 29. Qe4+ {[%emt 0:00:09]} 1-0

[Event "IX Iberoamericano Championship 2023"]
[Site "Panama City"]
[Date "2023.12.02"]
[Round "8.17"]
[White "Gutierrez Espinosa, Karen"]
[Black "Palma Villanueva, Miguel Ta"]
[Result "0-1"]
[ECO "B09"]
[WhiteElo "2059"]
[BlackElo "2286"]
[Annotator "RC"]
[PlyCount "99"]
[EventDate "2023.11.27"]
[EventType "swiss"]
[EventCountry "PAN"]
[SourceTitle "playchess.com"]
[Source "ChessBase"]
[SourceQuality "1"]
[TimeControl "5400+30"]

1. e4 {[%emt 0:00:03]} d6 {[%emt 0:02:09]} 2. d4 {[%emt 0:00:03]} Nf6 {[%emt 0:00:04]} 3. Nc3 {[%emt 0:00:16]} g6 {[%emt 0:00:03]} 4. f4 {[%emt 0:00:17]} Bg7 {[%emt 0:00:06]} 5. Nf3 {[%emt 0:00:25]} O-O {[%emt 0:00:05]} 6. Bd3 {[%emt 0:00:16]} Na6 {[%emt 0:00:11]} 7. O-O {[%emt 0:01:55]} c5 {[%emt 0:00:03]} 8. e5 {[%emt 0:01:50]} Nd7 {[%emt 0:00:49]} 9. Nb5 {[%emt 0:13:26]} cxd4 {[%emt 0:06:38]} 10. exd6 {[%emt 0:00:57]} exd6 {[%emt 0:04:05]} 11. Nbxd4 {[%emt 0:04:42]} Ndc5 {[%emt 0:02:26]} 12. c3 {[%emt 0:08:18]} Nxd3 {[%emt 0:02:49]} 13. Qxd3 {[%emt 0:01:49]} Nc5 {[%emt 0:00:04]} 14. Qc4 {[%emt 0:02:26]} b6 {[%emt 0:04:44]} 15. Rd1 {[%emt 0:14:09]} Ba6 {[%emt 0:06:55]} 16. Qb4 {[%emt 0:00:10]} Qd7 {[%emt 0:02:19]} 17. f5 {[%emt 0:07:43]} Bd3 {[%emt 0:09:55]} 18. Bf4 {[%emt 0:02:28]} Be4 {[%emt 0:04:15]} 19. Rd2 {[%emt 0:09:03]} gxf5 {[%emt 0:05:48]} 20. Rad1 {[%emt 0:02:03]} d5 {[%emt 0:00:22]} 21. Qb5 {[%emt 0:03:20]} Qxb5 {[%emt 0:10:23]} 22. Nxb5 {[%emt 0:01:24]} Ne6 {[%emt 0:00:04]} 23. Bg3 {[%emt 0:03:03]} Bh6 {[%emt 0:06:01]} 24. Re2 {[%emt 0:00:57]} Nf4 {[%emt 0:02:07]} 25. Bxf4 {[%emt 0:00:37]} Bxf4 {[%emt 0:00:02]} 26. Nbd4 {[%emt 0:00:26]} Kh8 {[%emt 0:05:09]} 27. Nh4 {[%emt 0:01:23]} Rg8 {[%emt 0:00:06]} 28. Nhxf5 {[%emt 0:03:02]} Rg5 {[%emt 0:02:56]} 29. Rf1 {[%emt 0:03:30]} Bc7 {[%emt 0:03:17]} 30. Ref2 {[%emt 0:02:00]} Rag8 {[%emt 0:02:07]} 31. g3 {[%emt 0:00:27]} Rh5 {[%emt 0:00:36]} 32. Ne2 {[%emt 0:03:16]} Rh3 {[%emt 0:09:31]} 33. Ne7 {[%emt 0:03:40]} Bxg3 {[%emt 0:04:10]} 34. Nxg8 {[%emt 0:00:51]} Bxf2+ {[%emt 0:00:05]} 35. Rxf2 {[%emt 0:00:06]} Kxg8 {[%emt 0:00:04]} 36. Ng3 {[%emt 0:00:04]} Rh6 {[%emt 0:01:17]} 37. c4 {[%emt 0:04:51]} Re6 {[%emt 0:02:25]} 38. Re2 {[%emt 0:01:30]} Kf8 {[%emt 0:03:07]} 39. Kf2 {[%emt 0:01:23]} Rf6+ {[%emt 0:01:06]} 40. Ke1 {[%emt 0:00:20]} Bd3 {[%emt 0:00:09]} 41. Rd2 {[%emt 0:00:06]} dxc4 {[%emt 0:00:24]} 42. b3 {[%emt 0:00:34]} b5 {[%emt 0:00:14]} 43. a4 {[%emt 0:00:42]} b4 {[%emt 0:01:16]} 44. bxc4 {[%emt 0:00:11]} Bxc4 {[%emt 0:00:44]} 45. Rd4 {[%emt 0:00:05]} b3 {[%emt 0:00:39]} 46. Nf5 {[%emt 0:01:29]} Rxf5 {[%emt 0:00:41]} 47. Rxc4 {[%emt 0:00:05]} Rf6 {[%emt 0:00:20]} 48. Kd1 {[%emt 0:00:20]} Rf1+ {[%emt 0:00:16]} 49. Kd2 {[%emt 0:00:58]} b2 {[%emt 0:00:05]} 50. Rb4 {[%emt 0:02:31]} 0-1